bitfinex-derivatives/quotes_ETHF0:USTF0_20250912
["timestamp","ask_amount","ask_price","bid_price","bid_amount"]
[1757671004007,1.40669127,4518.9,4518.8,0.706]
[1757671007011,1.40669127,4518.9,4518.0,0.1271]
[1757671007213,0.6957,4518.2,4518.1,0.706]
[1757671007511,0.8657,4518.9,4518.8,0.5028]
[1757671007706,1.40641924,4518.9,4518.8,0.5028]
[1757671009913,1.40641924,4518.9,4518.1,0.2982]
[1757671010109,0.4023,4518.2,4518.1,0.706]
[1757671010307,0.6957,4518.2,4518.1,0.706]
[1757671010709,0.4023,4518.2,4518.1,0.706]
[1757671014216,0.6957,4518.2,4518.1,0.706]
[1757671015316,1.23479895,4518.2,4518.1,0.706]
[1757671018208,1.23479895,4518.2,4518.1,0.5028]
[1757671018618,1.23479895,4518.2,4517.6,0.2882]
[1757671018825,0.2049,4517.7,4517.6,0.6811]
[1757671019214,0.74399895,4517.7,4517.6,0.6811]
[1757671020926,1.26069895,4517.7,4517.6,0.6811]
[1757671023223,0.94539895,4517.7,4517.6,0.6811]
[1757671023426,0.53909895,4517.7,4517.6,0.6811]
[1757671023823,0.4063,4518.2,4518.1,0.6811]
[1757671024023,0.2049,4518.2,4518.1,0.6811]
[1757671024218,0.74482115,4518.2,4518.1,0.6811]
[1757671030427,1.26152115,4518.2,4518.1,0.6811]
[1757671031322,1.26152115,4518.2,4517.6,0.2882]
[1757671031624,0.1012,4518.5,4517.6,0.4851]
[1757671031625,0.7216,4517.7,4517.6,0.4851]
[1757671031928,1.26161785,4517.7,4517.6,0.4851]
[1757671032123,1.26161785,4517.7,4517.6,0.2882]
[1757671032423,0.7216,4517.7,4517.6,0.4851]
[1757671032820,1.26154124,4517.7,4517.1,0.2882]
[1757671033028,0.7216,4517.2,4517.1,0.4851]
[1757671033223,0.4063,4517.2,4517.1,0.6811]
[1757671033627,0.2049,4517.2,4517.1,0.6811]
[1757671035331,0.4063,4517.2,4517.1,0.6811]
[1757671035531,0.2049,4517.2,4517.1,0.6811]
[1757671036425,0.3153,4518.4,4517.2,0.2882]
[1757671036624,0.53953514,4518.3,4517.2,0.2882]
[1757671036824,0.94295,4518.3,4518.2,0.4851]
[1757671037130,1.26112084,4518.3,4518.2,0.2882]
[1757671037326,1.26112084,4518.3,4517.6,0.2882]
[1757671037528,0.2049,4517.7,4517.6,0.6811]
[1757671037726,0.53952084,4518.1,4517.6,0.6811]
[1757671038031,0.53952084,4518.1,4517.5,0.1197]
[1757671038032,0.4063,4518.1,4518.0,0.8008]
[1757671038531,1.26113522,4518.1,4518.0,0.8008]
[1757671039434,1.26113522,4518.1,4518.0,0.6811]
[1757671045730,1.26113522,4518.1,4517.6,0.2882]
[1757671045930,0.2049,4517.7,4517.6,0.6811]
[1757671046329,0.74537228,4517.7,4517.6,0.6811]
[1757671046631,0.54047228,4517.7,4517.6,0.6811]
[1757671046833,0.54047228,4517.7,4517.6,0.3929]
[1757671047233,0.54047228,4517.8,4517.6,0.3929]
[1757671047432,0.54047228,4517.8,4517.7,0.2882]
[1757671047732,0.54047228,4517.8,4517.7,0.6818]
[1757671047933,0.73387228,4517.8,4517.7,0.6818]
[1757671048129,0.54047228,4517.8,4517.7,0.6818]
[1757671048439,0.1934,4518.1,4518.0,0.8322]
[1757671048735,1.23939509,4518.1,4518.0,0.8322]
[1757671051941,0.54049509,4518.1,4518.0,0.8322]
[1757671061454,1.23939509,4518.1,4518.0,0.8322]
[1757671061653,1.23939509,4518.1,4518.0,0.511]
[1757671063458,1.23939509,4518.1,4518.0,0.7077]
[1757671067256,1.23939509,4518.1,4518.0,0.8322]
[1757671067556,0.92799509,4518.1,4518.0,0.8322]
[1757671068354,1.23939509,4518.1,4518.0,0.8322]
[1757671069656,1.23939509,4518.1,4518.0,0.511]
[1757671070955,1.23939509,4518.1,4518.0,0.3032]
[1757671073159,1.23939509,4518.1,4518.0,0.511]
[1757671081264,1.23939509,4518.1,4517.6,0.3017]
[1757671081464,0.2017,4517.7,4517.6,0.61565]
[1757671081666,0.2017,4517.7,4517.6,0.3943]
[1757671082064,0.2017,4517.7,4517.6,0.91735]
[1757671082859,0.2017,4517.7,4517.6,0.696]
[1757671087969,0.73901678,4517.7,4517.6,0.696]
[1757671088871,0.2017,4517.7,4517.6,0.696]
[1757671093874,0.2017,4517.8,4517.7,0.696]
[1757671094376,0.73875023,4517.8,4517.7,0.696]
[1757671097969,0.2017,4517.8,4517.7,0.696]
[1757671098476,0.7067,4517.8,4517.7,0.696]
[1757671098674,1.24370847,4517.8,4517.7,0.696]
[1757671100076,0.94650847,4517.8,4517.7,0.696]
[1757671100677,0.73870847,4517.8,4517.7,0.696]
[1757671101082,0.53700847,4517.8,4517.7,0.696]
[1757671101283,0.2972,4518.4,4517.8,0.3017]
[1757671101473,0.7067,4518.4,4518.3,0.4958]
[1757671101772,1.24752067,4518.4,4518.3,0.4958]
[1757671101972,1.46884068,4518.4,4518.3,0.4958]
[1757671102673,1.24752067,4518.4,4518.3,0.4958]
[1757671104076,1.24752067,4518.4,4517.5,0.1197]
[1757671104282,0.2017,4517.7,4517.6,0.696]
[1757671104580,0.4095,4517.7,4517.6,0.696]
[1757671105180,0.7067,4517.7,4517.6,0.696]
[1757671107982,1.24513556,4517.7,4517.6,0.696]
[1757671108382,0.95033556,4517.7,4517.6,0.696]
[1757671114292,0.74253556,4517.7,4517.6,0.696]
[1757671114481,0.54083556,4517.7,4517.6,0.696]
[1757671115084,0.54083556,4517.7,4516.8,0.17614141]
[1757671115292,0.1921,4517.7,4517.6,0.6915]
[1757671115680,0.73297906,4517.7,4517.6,0.6915]
[1757671116792,1.22757906,4517.7,4517.6,0.6915]
[1757671117991,0.6867,4517.7,4517.6,0.6915]
[1757671118787,0.2948,4518.8,4516.8,0.3036]
[1757671118986,0.1014,4518.5,4516.9,0.3036]
[1757671119181,0.2948,4518.3,4517.0,0.1242]
[1757671119487,0.2948,4518.1,4517.1,0.3036]
[1757671119686,0.1014,4518.5,4517.9,0.1945]
[1757671119687,1.22774394,4518.0,4517.9,0.1945]
[1757671119888,0.4648,4518.9,4518.0,0.1242]
[1757671120090,0.8567,4518.9,4518.8,0.6915]
[1757671120292,1.39779304,4518.9,4518.8,0.6915]
[1757671120496,1.61909304,4518.9,4518.8,0.6915]
[1757671120695,1.39779304,4518.9,4518.8,0.6915]
[1757671126294,0.3621,4518.9,4518.8,0.6915]
[1757671126494,0.17,4518.9,4518.8,0.6915]
[1757671128002,0.69885378,4518.9,4518.8,0.6915]
[1757671129402,0.3621,4518.9,4518.8,0.6915]
[1757671130302,1.38527508,4518.9,4518.8,0.3036]
[1757671131097,1.38527508,4518.9,4518.8,0.4981]
[1757671132806,1.38527508,4518.9,4518.6,0.3036]
[1757671133005,0.8567,4518.9,4518.1,0.3036]
[1757671133207,0.1921,4518.2,4518.1,0.6915]
[1757671133505,0.2948,4518.8,4518.2,0.3036]
[1757671133707,0.71908664,4518.7,4518.6,0.3879]
[1757671133908,1.01388664,4518.7,4518.6,0.6915]
[1757671134107,0.4869,4518.7,4518.6,0.6915]
[1757671134308,0.1921,4518.7,4518.6,0.6915]
[1757671142821,0.3989,4518.7,4518.6,0.6915]
[1757671143022,0.7135,4518.7,4518.6,0.4981]
[1757671143519,0.7135,4518.7,4518.6,0.7039]
[1757671144424,0.93481,4518.7,4518.1,0.3077]
[1757671144721,0.4139,4518.1,4518.0,0.8468]
[1757671147621,0.2071,4518.1,4518.0,0.8468]
[1757671147923,0.2071,4518.1,4517.5,0.1242]
[1757671147924,0.7285,4517.7,4517.6,0.7226]
[1757671148119,0.4139,4517.7,4517.6,0.7226]
[1757671148325,0.3146,4518.2,4517.7,0.3077]
[1757671148525,0.7285,4518.2,4518.1,0.7226]
[1757671148723,1.25590513,4518.2,4518.1,0.7226]
[1757671148922,0.94130513,4518.2,4518.1,0.7226]
[1757671150027,0.52740513,4518.2,4518.1,0.7226]
[1757671150828,0.73450513,4518.2,4518.1,0.7226]
[1757671159432,0.52740513,4518.2,4518.1,0.7226]
[1757671166242,1.25590513,4518.2,4518.1,0.7226]
[1757671167648,0.94130513,4518.2,4518.1,0.7226]
[1757671168051,0.4139,4518.2,4518.1,0.7226]
[1757671169645,0.2071,4518.2,4518.1,0.7226]
[1757671170044,0.3146,4518.5,4518.1,0.7226]
[1757671170245,0.71883173,4518.4,4518.3,0.4017]
[1757671170544,0.71883173,4518.4,4518.3,0.7075]
[1757671172948,1.01793173,4518.4,4518.3,0.7075]
[1757671174048,1.22803173,4518.4,4518.3,0.7075]
[1757671174443,1.22803173,4518.4,4518.3,0.4996]
[1757671174646,1.22803173,4518.4,4517.6,0.3058]
[1757671174949,0.1922,4517.8,4517.7,0.62304]
[1757671175144,0.1922,4517.8,4517.7,0.4017]
[1757671175554,0.1922,4517.8,4517.7,0.7075]
[1757671176549,0.7014,4517.8,4517.7,0.7075]
[1757671176945,0.4023,4517.8,4517.7,0.7075]
[1757671178554,0.7014,4517.8,4517.7,0.7075]
[1757671180453,0.4023,4517.8,4517.7,0.7075]
[1757671181756,0.17,4518.9,4517.8,0.3058]
[1757671181957,0.2991,4518.7,4517.8,0.3058]
[1757671182257,1.22874999,4518.6,4518.5,0.4996]
[1757671184460,1.22874999,4518.6,4518.5,0.7075]
[1757671184659,1.22874999,4518.6,4518.1,0.3058]
[1757671184861,0.4023,4518.1,4518.0,0.5193]
[1757671185161,0.92964999,4518.1,4518.0,0.5193]
[1757671185352,0.92964999,4518.1,4518.0,0.8251]
[1757671187759,1.22874999,4518.1,4518.0,0.8251]
[1757671188261,1.22904647,4518.1,4518.0,0.8251]
[1757671190660,0.92994647,4518.1,4518.0,0.8251]
[1757671190964,0.52764647,4518.1,4518.0,0.8251]
[1757671191261,0.71984647,4518.1,4518.0,0.8251]
[1757671191462,1.22904647,4518.1,4518.0,0.8251]
[1757671197368,1.22904647,4518.1,4518.0,0.7075]
[1757671197660,1.22904647,4518.1,4518.0,0.8251]
[1757671200169,1.22904647,4518.1,4518.0,0.3058]
[1757671200364,0.1014,4518.0,4517.5,0.1242]
[1757671200567,0.695,4517.6,4517.5,0.5142]
[1757671200768,1.22264647,4517.6,4517.5,0.1974]
[1757671200963,1.22264647,4517.6,4517.1,0.301]
[1757671201165,0.695,4517.1,4517.0,0.8152]
[1757671201372,1.22264647,4517.1,4517.0,0.8152]
[1757671202172,1.22264647,4517.1,4517.0,0.301]
[1757671202468,0.407,4516.7,4516.6,0.301]
[1757671202660,0.695,4516.7,4516.1,0.301]
[1757671202861,0.2076,4516.2,4516.1,0.691]
[1757671203070,0.73524647,4516.2,4516.1,0.691]
[1757671203269,0.2076,4516.2,4516.1,0.691]
[1757671204464,0.695,4516.2,4516.1,0.691]
[1757671205580,0.695,4516.2,4516.1,0.4984]
[1757671206168,0.2076,4516.6,4516.5,0.5059]
[1757671206375,0.288,4517.0,4516.6,0.301]
[1757671206675,0.407,4517.0,4516.9,0.691]
[1757671206871,0.2076,4517.0,4516.9,0.691]
[1757671207172,0.4956,4517.3,4517.2,0.691]
[1757671207374,1.21393011,4517.3,4517.2,0.691]
[1757671208076,0.695,4517.3,4517.2,0.691]
[1757671208870,0.407,4517.3,4517.2,0.691]
[1757671209875,0.695,4517.3,4517.2,0.691]
[1757671211372,0.695,4517.3,4517.2,0.4984]
[1757671211685,0.695,4517.3,4516.6,0.301]
[1757671212067,0.695,4517.3,4517.2,0.1974]
[1757671212373,0.695,4517.3,4517.2,0.4984]
[1757671212676,0.695,4517.3,4517.2,0.691]
[1757671213672,0.288,4517.7,4517.2,0.691]
[1757671213977,0.2076,4517.7,4517.6,0.691]
[1757671214367,0.288,4518.4,4517.7,0.301]
[1757671214580,0.695,4518.4,4518.3,0.4984]
[1757671218870,0.695,4518.4,4517.5,0.1159]
[1757671218871,0.695,4518.4,4518.1,0.301]
[1757671219071,0.695,4518.4,4517.5,0.1159]
[1757671219270,0.695,4518.4,4517.6,0.301]
[1757671220673,0.695,4516.7,4516.6,0.691]
[1757671220868,0.407,4516.7,4516.6,0.691]
[1757671221274,0.2076,4516.7,4516.6,0.691]
[1757671221777,0.695,4516.7,4516.6,0.691]
[1757671222166,0.695,4516.7,4516.6,0.4984]
[1757671222672,0.695,4516.7,4516.6,0.691]
[1757671223172,0.407,4516.7,4516.6,0.691]
[1757671224181,0.695,4516.7,4516.6,0.691]
[1757671225081,0.407,4516.7,4516.6,0.691]
[1757671225582,0.288,4517.4,4516.7,0.301]
[1757671225777,0.1014,4517.5,4516.7,0.301]
[1757671225973,0.2076,4516.8,4516.7,0.4984]
[1757671226179,0.288,4517.3,4516.8,0.301]
[1757671226378,0.407,4517.3,4517.2,0.1974]
[1757671226677,0.695,4517.3,4517.2,0.4984]
[1757671227077,0.695,4517.3,4517.2,0.691]
[1757671230383,0.695,4517.3,4516.6,0.3055]
[1757671236185,0.1949,4516.7,4516.6,0.6945]
[1757671236685,0.7003,4516.7,4516.6,0.6945]
[1757671237289,0.406,4516.7,4516.6,0.6945]
[1757671239190,0.1949,4516.8,4516.7,0.3055]
[1757671239484,0.1949,4516.8,4516.7,0.6945]
[1757671240587,0.7003,4516.8,4516.7,0.6945]
[1757671242683,0.2943,4517.1,4516.7,0.6945]
[1757671242884,0.406,4517.5,4517.4,0.6945]
[1757671243485,0.92288644,4517.5,4517.4,0.6945]
[1757671243688,0.51688644,4517.5,4517.4,0.6945]
[1757671243985,0.7003,4518.1,4518.0,0.4996]
[1757671244190,1.21724732,4518.1,4518.0,0.4996]
[1757671245490,1.21724732,4518.1,4518.0,0.8219]
[1757671245990,1.21724732,4518.1,4518.0,0.6945]
[1757671246891,1.21724732,4518.1,4518.0,0.3055]
[1757671247092,1.21724732,4518.1,4517.6,0.3055]
[1757671247288,0.7003,4517.7,4517.6,0.4996]
[1757671248194,1.21657381,4517.7,4517.6,0.4996]
[1757671248586,1.21657381,4517.7,4517.6,0.6945]
[1757671248987,0.92227381,4517.7,4517.6,0.6945]
[1757671250497,1.21657381,4517.7,4517.6,0.6945]
[1757671252191,1.21657381,4517.7,4517.0,0.1274]
[1757671252397,0.7003,4517.2,4517.1,0.4996]
[1757671252698,0.7003,4517.2,4517.1,0.6945]
[1757671253503,0.406,4517.2,4517.1,0.6945]
[1757671254004,0.1949,4517.2,4517.1,0.6945]
[1757671258002,0.2943,4517.5,4517.1,0.389]
[1757671258210,0.2098,4517.5,4517.4,0.3956]
[1757671258508,0.2098,4517.5,4517.4,0.6869]
[1757671259605,0.101,4518.0,4517.9,0.1921]
[1757671259606,0.5222,4518.0,4517.9,0.1921]
[1757671259914,1.2382602,4518.0,4517.9,0.2913]
[1757671260208,1.3392602,4518.0,4517.5,0.1237]
[1757671260408,0.7243,4517.6,4517.5,0.5193]
[1757671260607,0.7243,4517.6,4517.0,0.1274]
[1757671260801,0.7243,4517.1,4517.0,0.3195]
[1757671261001,0.7243,4517.1,4517.0,0.6108]
[1757671261199,0.7243,4517.1,4517.0,0.8143]
[1757671261401,0.2098,4517.1,4517.0,0.8143]
[1757671261597,0.3124,4517.5,4517.1,0.2913]
[1757671261800,0.7243,4517.5,4517.4,0.6869]
[1757671262000,0.2098,4517.5,4517.4,0.6869]
[1757671262404,0.7243,4517.5,4517.4,0.6869]
[1757671264111,0.4119,4517.5,4517.4,0.6869]
[1757671265111,0.7243,4517.5,4517.4,0.6869]
[1757671265710,1.23756251,4517.5,4517.4,0.2913]
[1757671266116,1.23756251,4517.5,4517.4,0.4834]
[1757671267512,1.23756251,4517.5,4517.4,0.2913]
[1757671267719,1.23756251,4517.5,4517.4,0.4834]
[1757671268710,1.23756251,4517.5,4517.4,0.6869]
[1757671269710,1.23756251,4517.5,4517.0,0.1274]
[1757671269711,1.33926251,4517.5,4517.1,0.2913]
[1757671270017,0.7243,4517.2,4517.1,0.2913]
[1757671270213,0.7243,4517.2,4517.1,0.4834]
[1757671270405,0.7243,4517.2,4517.1,0.6869]
[1757671271616,0.7243,4517.2,4517.1,0.4834]
[1757671271816,0.7243,4517.2,4517.1,0.2913]
[1757671272220,0.7243,4517.2,4517.1,0.4834]
[1757671273621,0.4119,4517.2,4517.1,0.6869]
[1757671273812,0.3124,4517.5,4517.2,0.2913]
[1757671274008,0.72257321,4517.4,4517.3,0.3956]
[1757671274212,0.72257321,4517.4,4517.3,0.6869]
[1757671276019,1.23707321,4517.4,4517.3,0.6869]
[1757671279517,0.92467321,4517.4,4517.3,0.6869]
[1757671279716,0.51277321,4517.4,4517.3,0.6869]
[1757671285322,0.2098,4518.5,4518.4,0.3956]
[1757671285521,0.2098,4518.5,4518.4,0.6869]
[1757671285522,0.72555145,4518.5,4518.4,0.6869]
[1757671289130,0.17,4518.9,4518.5,0.1196]
[1757671289332,0.867,4518.9,4518.8,0.7126]
[1757671289632,1.37469879,4518.9,4518.8,0.7126]
[1757671291129,1.07719879,4518.9,4518.8,0.7126]
[1757671291629,1.37469879,4518.9,4518.8,0.7126]
[1757671292426,0.2975,4518.8,4518.7,0.2105]
[1757671292629,1.20469879,4518.8,4518.7,0.4192]
[1757671292827,1.20469879,4518.8,4518.7,0.7126]
[1757671293134,0.697,4518.8,4518.7,0.7126]
[1757671295431,0.3995,4518.8,4518.7,0.7126]
[1757671295734,0.17,4518.9,4518.8,0.2934]
[1757671295939,0.867,4518.9,4518.8,0.5039]
[1757671296331,0.5695,4518.9,4518.8,0.7126]
[1757671296533,0.371,4518.9,4518.8,0.7126]
[1757671298034,0.87794648,4518.9,4518.8,0.7126]
[1757671298238,1.07644648,4518.9,4518.8,0.7126]
[1757671298538,1.37394648,4518.9,4518.5,0.1196]
[1757671298738,0.697,4518.7,4518.6,0.2934]
[1757671298933,1.20394648,4518.7,4518.6,0.2934]
[1757671299126,1.20394648,4518.7,4518.1,0.2934]
[1757671299332,0.201,4518.2,4518.1,0.93392]
[1757671299737,0.4985,4518.5,4518.4,0.4192]
[1757671299936,1.20384411,4518.5,4518.4,0.7126]
[1757671301038,1.20384411,4518.5,4518.4,0.5039]
[1757671301946,1.20384411,4518.5,4518.4,0.2934]
[1757671302243,1.20384411,4518.5,4518.4,0.7126]
[1757671302444,0.90634411,4518.5,4518.4,0.7126]
[1757671303239,1.20384411,4518.5,4518.4,0.2934]
[1757671303643,1.20384411,4518.5,4518.4,0.7126]
[1757671304539,1.20384411,4518.5,4518.4,0.5039]
[1757671304747,1.30514411,4518.5,4518.0,0.1237]
[1757671304939,0.2975,4518.4,4518.1,0.2934]
[1757671305139,0.496,4518.4,4518.3,0.2105]
[1757671305333,0.697,4518.4,4518.3,0.5039]
[1757671306243,0.697,4518.4,4518.3,0.7126]
[1757671307145,1.2039508,4518.4,4518.3,0.7126]
[1757671308141,0.697,4518.4,4518.3,0.7126]
[1757671310440,0.697,4518.4,4518.3,0.5039]
[1757671314050,0.697,4518.4,4518.3,0.7126]
[1757671318054,1.20182427,4518.4,4518.3,0.7126]
[1757671320558,1.20182427,4518.4,4518.1,0.308]
[1757671320748,0.7025,4518.2,4518.1,0.5032]
[1757671320949,1.20732427,4518.2,4518.1,0.5032]
[1757671321655,0.91182427,4518.2,4518.1,0.6957]
[1757671326555,1.20732427,4518.2,4518.1,0.6957]
[1757671336071,0.2117,4517.2,4517.1,0.6957]
[1757671336270,0.5072,4517.2,4517.1,0.6957]
[1757671336566,0.7025,4517.2,4517.1,0.6957]
[1757671337572,0.407,4517.2,4517.1,0.6957]
[1757671338081,0.2117,4517.2,4517.1,0.6957]
[1757671338384,0.101,4518.0,4517.1,0.6957]
[1757671338577,0.2955,4517.8,4517.2,0.308]
[1757671338773,1.2065617,4517.7,4517.6,0.5032]
[1757671341183,0.5040617,4517.7,4517.6,0.6957]
[1757671341775,0.7157617,4517.7,4517.6,0.6957]
[1757671342772,1.2065617,4517.7,4517.6,0.6957]
[1757671348194,0.7025,4517.7,4517.6,0.6957]
[1757671349395,0.407,4517.7,4517.6,0.6957]
[1757671351394,0.1013,4518.5,4517.6,0.6957]
[1757671351589,1.45656318,4518.4,4518.3,0.2003]
[1757671351791,1.23523318,4518.4,4518.3,0.5102]
[1757671352090,0.92253318,4518.4,4518.3,0.7149]
[1757671352292,0.4174,4518.4,4518.3,0.7149]
[1757671353404,0.7301,4518.4,4518.3,0.7149]
[1757671356699,0.7301,4518.4,4518.0,0.1258]
[1757671356896,0.7301,4518.4,4517.6,0.3099]
[1757671357097,0.50237185,4518.3,4517.6,0.3099]
[1757671357299,0.7301,4517.7,4517.6,0.7149]
[1757671360393,0.4174,4517.7,4517.6,0.7149]
[1757671372911,0.4174,4517.7,4517.6,0.7149]
[1757671373107,0.7301,4517.7,4517.6,0.7149]
[1757671378609,0.4174,4517.7,4517.6,0.7149]
[1757671378917,0.1016,4518.5,4517.6,0.405]
[1757671379111,0.3085,4518.3,4517.7,0.303]
[1757671379413,1.19982724,4518.2,4518.1,0.495]
[1757671386520,0.50172724,4518.2,4518.1,0.7014]
[1757671386724,0.3085,4519.5,4518.8,0.7014]
[1757671386915,0.8239,4520.0,4519.9,0.3984]
[1757671387114,0.8239,4520.0,4519.5,0.1965]
[1757671387418,0.8239,4520.0,4518.9,0.3984]
[1757671387419,0.8239,4519.0,4518.9,0.3984]
[1757671388011,0.8239,4519.0,4518.9,0.192]
[1757671388316,0.8239,4518.5,4518.4,0.192]
[1757671389215,0.8239,4518.5,4517.0,1.99173808]
[1757671389216,0.3085,4517.9,4517.1,0.1965]
[1757671389420,0.6981,4517.9,4517.8,0.192]
[1757671390921,0.32,4517.0,4516.9,0.5949]
[1757671391122,0.5154,4517.0,4516.5,0.161]
[1757671391319,0.5154,4517.0,4516.9,0.192]
[1757671391521,0.8239,4517.0,4516.9,0.192]
[1757671394008,0.8239,4517.0,4516.9,0.3984]
[1757671394210,0.1258,4517.5,4516.9,0.3984]
[1757671394415,0.6981,4517.4,4517.3,0.3984]
[1757671397222,0.3085,4517.9,4517.3,0.3984]
[1757671397424,0.5154,4518.0,4517.9,0.192]
[1757671398025,0.8239,4518.0,4517.9,0.192]
[1757671399919,0.32,4517.5,4517.4,0.3984]
[1757671400119,0.32,4517.5,4517.0,1.59335808]
[1757671400120,0.3085,4517.4,4517.0,1.59335808]
[1757671400319,0.5027,4517.1,4517.0,1.99175808]
[1757671400521,0.5027,4517.1,4517.0,2.18825808]
[1757671401830,0.6981,4517.1,4517.0,1.99175808]
[1757671402025,0.6981,4517.1,4517.0,0.3984]
[1757671404131,0.6981,4517.1,4517.0,1.99175808]
[1757671404431,0.6981,4517.1,4517.0,0.3984]
[1757671407533,0.3896,4516.8,4516.7,1.78535808]
[1757671407723,0.6981,4516.8,4516.7,2.00835808]
[1757671407921,0.6981,4516.8,4516.7,2.21475808]
[1757671408133,0.6981,4516.8,4516.7,0.6214]
[1757671410228,0.6981,4516.8,4516.7,0.8181]
[1757671413532,0.6981,4516.8,4516.7,0.6214]
[1757671413832,0.7041,4516.7,4516.6,0.2009]
[1757671414137,0.7041,4516.7,4516.6,0.62]
[1757671422841,0.7041,4516.7,4516.6,0.8167]
[1757671423146,0.7041,4516.7,4516.6,0.62]
[1757671436848,0.7041,4516.7,4516.6,0.4229]
[1757671437455,0.7041,4516.7,4516.6,2.41567997]
[1757671438053,0.7041,4516.7,4516.6,0.4229]
[1757671446770,0.7041,4516.7,4516.6,0.2009]
[1757671446970,0.7135,4516.4,4516.3,1.99277997]
[1757671447268,0.4083,4516.4,4516.3,0.222]
[1757671447668,0.7135,4516.4,4516.3,0.222]
[1757671448062,0.4083,4516.4,4516.1,1.74275107]
[1757671448259,0.7135,4516.3,4516.2,2.21477997]
[1757671448469,0.7135,4516.3,4516.2,0.222]
[1757671449371,0.4083,4515.9,4515.8,1.99277997]
[1757671449566,0.7135,4515.9,4515.8,2.21477997]
[1757671449765,0.7135,4515.9,4515.8,0.222]
[1757671449969,0.7135,4515.9,4515.8,0.419]
[1757671452168,0.7135,4515.9,4515.8,0.222]
[1757671452372,0.3052,4515.8,4515.5,33.88177997]
[1757671452577,0.502,4515.6,4515.5,33.88177997]
[1757671452767,0.502,4515.6,4515.5,34.10377997]
[1757671453775,0.502,4515.6,4515.5,32.111]
[1757671456478,0.502,4515.6,4515.5,33.84353669]
[1757671457170,0.502,4515.6,4515.5,34.04013669]
[1757671457878,0.502,4515.6,4515.5,33.81813669]
[1757671458078,0.502,4515.6,4515.5,34.04013669]
[1757671458276,0.502,4515.6,4515.5,33.84353669]
[1757671459879,0.502,4515.6,4515.5,31.889]
[1757671460080,0.502,4515.6,4515.5,32.111]
[1757671464578,0.502,4515.6,4515.5,32.3076]
[1757671466380,0.1186,4516.0,4515.9,0.6008]
[1757671466584,0.34005,4516.0,4515.9,2.41294691]
[1757671466782,0.1186,4516.0,4515.9,2.41294691]
[1757671467080,0.6206,4516.0,4515.9,2.41294691]
[1757671467680,0.6206,4516.0,4515.9,2.21634691]
[1757671467984,0.8241,4516.0,4515.9,2.21634691]
[1757671468185,0.8241,4516.0,4515.9,0.6262]
[1757671469190,0.8241,4516.0,4515.9,2.21634691]
[1757671472290,0.8241,4516.0,4515.9,0.419]
[1757671472895,0.3146,4515.9,4515.8,0.222]
[1757671473184,0.7214,4515.9,4515.8,0.222]
[1757671473690,0.1236,4515.5,4515.4,1.59014691]
[1757671473892,0.1236,4515.5,4514.9,1.59014691]
[1757671473893,0.3146,4515.4,4514.9,1.59014691]
[1757671474188,0.3146,4514.9,4514.8,1.59014691]
[1757671474391,0.7214,4514.9,4514.7,1.81214691]
[1757671474587,0.3146,4514.8,4514.7,1.81214691]
[1757671474789,0.7214,4514.8,4514.7,2.01894691]
[1757671475689,0.7214,4514.8,4514.7,2.21404691]
[1757671477592,0.7214,4514.8,4514.7,0.6239]
[1757671485601,0.7214,4514.8,4514.7,0.8204]
[1757671485802,0.7214,4514.8,4514.7,0.6239]
[1757671487997,0.7214,4514.8,4514.7,0.8208]
[1757671488202,0.3146,4514.8,4514.7,0.8208]
[1757671491303,0.5179,4514.8,4514.7,0.8208]
[1757671496502,0.3146,4515.0,4514.9,0.4019]
[1757671496707,0.3269,4515.5,4515.4,0.4019]
[1757671496903,0.845,4515.5,4515.4,0.6239]
[1757671497800,0.845,4515.5,4515.4,0.222]
[1757671498002,0.3901,4514.9,4514.7,1.59014691]
[1757671498201,0.6952,4514.7,4514.6,1.78954691]
[1757671498400,0.6952,4514.7,4514.6,2.21854691]
[1757671499301,0.4963,4514.7,4514.6,2.41534691]
[1757671499506,0.3051,4514.7,4514.6,2.41534691]
[1757671499804,0.3051,4514.7,4514.6,0.8252]
[1757671500701,0.3051,4514.9,4514.6,0.6284]
[1757671501005,0.3051,4514.9,4514.8,2.19449208]
[1757671502207,0.4963,4514.9,4514.8,0.6032]
[1757671503299,0.1236,4515.5,4515.4,0.207]
[1757671503504,0.3051,4515.5,4515.4,0.8252]
[1757671504100,0.3051,4515.5,4515.4,2.81797997]
[1757671504501,0.6201,4515.5,4515.4,0.8252]
[1757671508113,0.1186,4516.0,4515.9,0.4064]
[1757671508307,0.3098,4516.0,4515.9,0.6284]
[1757671508513,0.5087,4516.0,4515.9,0.6284]
[1757671508804,0.8138,4516.0,4515.9,0.6284]
[1757671509418,0.8138,4516.0,4515.9,0.4214]
[1757671509703,0.8138,4516.0,4515.9,0.222]
[1757671513104,0.3051,4515.9,4515.6,1.59063133]
[1757671513305,0.3051,4515.4,4515.2,1.59063133]
[1757671513509,0.3901,4515.1,4515.0,0.222]
[1757671513710,0.6952,4515.1,4515.0,0.222]
[1757671514507,0.6952,4514.9,4514.8,1.59063133]
[1757671514706,0.6952,4514.9,4514.8,1.81263133]
[1757671515616,0.6952,4514.9,4514.7,1.59063133]
[1757671515819,0.6952,4514.9,4514.8,0.222]
[1757671516108,0.3051,4514.8,4514.7,1.81263133]
[1757671516309,0.6952,4514.8,4514.7,1.81263133]
[1757671518215,0.6952,4514.8,4514.7,0.222]
[1757671519416,0.1238,4514.5,4514.3,1.99277997]
[1757671519606,0.3901,4514.2,4514.1,33.88877997]